[Event "Goteborg Open 2024"]
[Site "Goteborgs Schackcentrum, Vegatan 20, Gothenburg, Sweden"]
[Date "2024.08.02"]
[Round "3.16"]
[White "Westlund, Tim"]
[Black "Murugaraja, Yogeshwer"]
[Result "1-0"]
[TimeControl "15 minutes + 5 seconds per move from move one (Round 1 - 4) / 90 minutes + 30 seconds per move from move one (Round 5 - 8)"]
[WhiteFideId "1754718"]
[BlackFideId "1779389"]
[WhiteElo "1886"]
[BlackElo "1628"]

1. e4 {[%clk 00:15:08]} {[%emt 00:00:02]} c5 {[%clk 00:15:08]} {[%emt
00:00:03]} 2. Nf3 {[%clk 00:15:08]} {[%emt 00:00:03]} d6 {[%clk 00:15:12]}
{[%emt 00:00:02]} 3. Bb5+ {[%clk 00:15:11]} {[%emt 00:00:03]} Bd7 {[%clk
00:15:15]} 4. Bxd7+ {[%clk 00:15:13]} {[%emt 00:00:03]} Qxd7 {[%clk 00:15:18]}
{[%emt 00:00:03]} 5. O-O {[%clk 00:14:59]} {[%emt 00:00:18]} Nf6 {[%clk
00:15:19]} {[%emt 00:00:05]} 6. Qe2 {[%clk 00:15:00]} {[%emt 00:00:03]} Nc6
{[%clk 00:15:03]} {[%emt 00:00:21]} 7. c3 {[%clk 00:14:56]} {[%emt 00:00:09]}
e6 {[%clk 00:14:40]} {[%emt 00:00:28]} 8. d4 {[%clk 00:14:57]} {[%emt
00:00:04]} cxd4 {[%clk 00:14:42]} {[%emt 00:00:03]} 9. cxd4 {[%clk 00:15:00]}
{[%emt 00:00:02]} Be7 {[%clk 00:14:18]} {[%emt 00:00:29]} 10. Nc3 {[%clk
00:14:54]} {[%emt 00:00:11]} O-O {[%clk 00:14:07]} {[%emt 00:00:16]} 11. Bg5
{[%clk 00:14:31]} {[%emt 00:00:26]} Rac8 {[%clk 00:13:29]} {[%emt 00:00:45]} 12.
Rac1 {[%clk 00:14:09]} {[%emt 00:00:27]} h6 {[%clk 00:13:28]} {[%emt 00:00:07]}
13. Be3 {[%clk 00:13:23]} {[%emt 00:00:49]} a6 {[%clk 00:12:59]} {[%emt
00:00:36]} 14. h3 {[%clk 00:13:22]} {[%emt 00:00:05]} b5 {[%clk 00:12:28]}
{[%emt 00:00:36]} 15. a3 {[%clk 00:12:47]} {[%emt 00:00:41]} Qb7 {[%clk
00:11:33]} {[%emt 00:00:58]} 16. b4 {[%clk 00:12:32]} {[%emt 00:00:20]} Rb8
{[%clk 00:10:40]} {[%emt 00:00:59]} 17. Rc2 {[%clk 00:10:59]} {[%emt 00:01:38]}
a5 {[%clk 00:10:05]} {[%emt 00:00:40]} 18. bxa5 {[%clk 00:10:49]} {[%emt
00:00:15]} Nxa5 {[%clk 00:10:09]} {[%emt 00:00:01]} 19. Nd2 {[%clk 00:10:06]}
{[%emt 00:00:48]} Rfc8 {[%clk 00:09:29]} {[%emt 00:00:45]} 20. Rb1 {[%clk
00:08:59]} {[%emt 00:01:11]} Qc6 {[%clk 00:07:38]} {[%emt 00:01:57]} 21. Nd5
{[%clk 00:03:09]} {[%emt 00:05:53]} Qxc2 {[%clk 00:05:29]} {[%emt 00:02:16]} 22.
Nxe7+ {[%clk 00:03:12]} {[%emt 00:00:02]} Kh8 {[%clk 00:05:33]} {[%emt
00:00:03]} 23. Nxc8 {[%clk 00:03:12]} {[%emt 00:00:03]} Rxc8 {[%clk 00:05:37]}
{[%emt 00:00:02]} 24. Qxb5 {[%clk 00:02:44]} {[%emt 00:00:30]} Nc4 {[%clk
00:04:46]} {[%emt 00:00:59]} 25. Nxc4 {[%clk 00:00:09]} {[%emt 00:02:39]} Qxc4
{[%clk 00:04:33]} {[%emt 00:00:19]} 26. Qxc4 {[%clk 00:00:11]} {[%emt
00:00:02]} Rxc4 {[%clk 00:04:37]} {[%emt 00:00:01]} 27. f3 {[%clk 00:00:13]}
{[%emt 00:00:03]} Rc3 {[%clk 00:04:35]} {[%emt 00:00:07]} 28. Bc1 {[%clk
00:00:15]} {[%emt 00:00:03]} d5 {[%clk 00:04:08]} {[%emt 00:00:33]} 29. e5
{[%clk 00:00:17]} {[%emt 00:00:03]} Nh5 {[%clk 00:03:54]} {[%emt 00:00:18]} 30.
Kh2 {[%clk 00:00:16]} {[%emt 00:00:06]} f6 {[%clk 00:03:53]} {[%emt 00:00:07]}
31. exf6 {[%clk 00:00:17]} {[%emt 00:00:04]} Nxf6 {[%clk 00:03:55]} {[%emt
00:00:02]} 32. Ra1 {[%clk 00:00:17]} {[%emt 00:00:05]} Rd3 {[%clk 00:03:43]}
{[%emt 00:00:17]} 33. a4 {[%clk 00:00:07]} {[%emt 00:00:16]} Rxd4 {[%clk
00:03:36]} {[%emt 00:00:11]} 34. a5 {[%clk 00:00:10]} {[%emt 00:00:02]} Rc4
{[%clk 00:03:21]} {[%emt 00:00:18]} 35. a6 {[%clk 00:00:13]} {[%emt 00:00:05]}
Nd7 {[%clk 00:03:06]} {[%emt 00:00:19]} 36. a7 {[%clk 00:00:15]} {[%emt
00:00:03]} Nb6 {[%clk 00:03:10]} 37. a8=Q+ {[%clk 00:00:16]} {[%emt 00:00:04]}
Nxa8 {[%clk 00:03:14]} {[%emt 00:00:02]} 38. Rxa8+ {[%clk 00:00:19]} {[%emt
00:00:02]} Kh7 {[%clk 00:03:19]} 39. Bf4 {[%clk 00:00:20]} {[%emt 00:00:03]}
Rxf4 {[%clk 00:03:17]} {[%emt 00:00:07]} 40. Re8 {[%clk 00:00:21]} {[%emt
00:00:04]} Rf6 {[%clk 00:03:18]} {[%emt 00:00:04]} 41. Rd8 {[%clk 00:00:24]}
{[%emt 00:00:02]} Kg6 {[%clk 00:03:20]} {[%emt 00:00:03]} 42. Kg3 {[%clk
00:00:28]} {[%emt 00:00:01]} Kf5 {[%clk 00:03:22]} {[%emt 00:00:04]} 43. Kf2
{[%clk 00:00:31]} {[%emt 00:00:02]} Ke5 {[%clk 00:03:21]} {[%emt 00:00:06]} 44.
Ke3 {[%clk 00:00:35]} {[%emt 00:00:01]} g5 {[%clk 00:02:55]} {[%emt 00:00:31]}
45. g3 {[%clk 00:00:34]} {[%emt 00:00:05]} Rf7 {[%clk 00:02:49]} {[%emt
00:00:10]} 46. Rh8 {[%clk 00:00:36]} {[%emt 00:00:03]} d4+ {[%clk 00:02:48]}
{[%emt 00:00:07]} 47. Kf2 {[%clk 00:00:38]} {[%emt 00:00:02]} Rf6 {[%clk
00:02:47]} {[%emt 00:00:07]} 48. Rd8 {[%clk 00:00:40]} {[%emt 00:00:03]} Rf7
{[%clk 00:02:27]} {[%emt 00:00:25]} 49. h4 {[%clk 00:00:09]} {[%emt 00:00:37]}
gxh4 {[%clk 00:02:28]} {[%emt 00:00:03]} 50. gxh4 {[%clk 00:00:12]} {[%emt
00:00:01]} Rc7 {[%clk 00:01:29]} {[%emt 00:01:05]} 51. Ke2 {[%clk 00:00:12]}
{[%emt 00:00:04]} Rc4 {[%clk 00:01:20]} {[%emt 00:00:13]} 52. Rh8 {[%clk
00:00:14]} {[%emt 00:00:05]} Kf4 {[%clk 00:01:06]} {[%emt 00:00:19]} 53. Rxh6
{[%clk 00:00:15]} {[%emt 00:00:04]} e5 {[%clk 00:00:33]} {[%emt 00:00:39]} 54.
Rg6 {[%clk 00:00:10]} {[%emt 00:00:09]} Rc2+ {[%clk 00:00:30]} {[%emt
00:00:08]} 55. Kd3 {[%clk 00:00:09]} {[%emt 00:00:06]} Rc3+ {[%clk 00:00:33]}
{[%emt 00:00:02]} 56. Ke2 {[%clk 00:00:06]} {[%emt 00:00:08]} Rxf3 {[%clk
00:00:27]} {[%emt 00:00:11]} 57. Rf6+ {[%clk 00:00:09]} {[%emt 00:00:02]} Ke4
{[%clk 00:00:23]} {[%emt 00:00:08]} 58. Rxf3 {[%clk 00:00:13]} {[%emt
00:00:02]} 1-0

[Event "Goteborg Open 2024"]
[Site "Goteborgs Schackcentrum, Vegatan 20, Gothenburg, Sweden"]
[Date "2024.08.02"]
[Round "3.17"]
[White "Eklund, Rickard"]
[Black "Evertsson, David"]
[Result "0-1"]
[TimeControl "15 minutes + 5 seconds per move from move one (Round 1 - 4) / 90 minutes + 30 seconds per move from move one (Round 5 - 8)"]
[WhiteFideId "1789040"]
[BlackFideId "1777424"]
[WhiteElo "1595"]
[BlackElo "1642"]

1. e4 {[%clk 00:15:09]} {[%emt 00:00:02]} c5 {[%clk 00:15:04]} {[%emt
00:00:06]} 2. Nf3 {[%clk 00:15:12]} {[%emt 00:00:01]} d6 {[%clk 00:15:08]}
{[%emt 00:00:01]} 3. d4 {[%clk 00:15:15]} {[%emt 00:00:02]} cxd4 {[%clk
00:15:12]} {[%emt 00:00:02]} 4. Nxd4 {[%clk 00:15:19]} Nf6 {[%clk 00:15:15]}
{[%emt 00:00:03]} 5. Nc3 {[%clk 00:15:23]} a6 {[%clk 00:15:19]} {[%emt
00:00:02]} 6. Bg5 {[%clk 00:15:24]} {[%emt 00:00:04]} e6 {[%clk 00:15:19]}
{[%emt 00:00:04]} 7. Bc4 {[%clk 00:15:20]} {[%emt 00:00:09]} Be7 {[%clk
00:15:16]} {[%emt 00:00:09]} 8. Qd2 {[%clk 00:15:01]} {[%emt 00:00:23]} O-O
{[%clk 00:15:02]} {[%emt 00:00:19]} 9. O-O-O {[%clk 00:14:57]} {[%emt
00:00:09]} Qc7 {[%clk 00:15:00]} {[%emt 00:00:07]} 10. Bb3 {[%clk 00:14:59]}
{[%emt 00:00:03]} b5 {[%clk 00:13:55]} {[%emt 00:01:10]} 11. Kb1 {[%clk
00:15:00]} {[%emt 00:00:04]} Nbd7 {[%clk 00:13:04]} {[%emt 00:00:56]} 12. f4
{[%clk 00:14:47]} {[%emt 00:00:18]} Bb7 {[%clk 00:12:52]} {[%emt 00:00:18]} 13.
Rhe1 {[%clk 00:14:23]} {[%emt 00:00:29]} Nb6 {[%clk 00:12:28]} {[%emt
00:00:29]} 14. e5 {[%clk 00:13:32]} {[%emt 00:00:56]} dxe5 {[%clk 00:12:16]}
{[%emt 00:00:17]} 15. fxe5 {[%clk 00:13:35]} {[%emt 00:00:01]} Nfd5 {[%clk
00:12:07]} {[%emt 00:00:14]} 16. Bxe7 {[%clk 00:13:31]} {[%emt 00:00:08]} Qxe7
{[%clk 00:11:51]} {[%emt 00:00:23]} 17. g4 {[%clk 00:12:29]} {[%emt 00:01:06]}
Nc4 {[%clk 00:09:44]} {[%emt 00:02:11]} 18. Bxc4 {[%clk 00:12:30]} {[%emt
00:00:05]} bxc4 {[%clk 00:09:48]} {[%emt 00:00:01]} 19. Nxd5 {[%clk 00:12:01]}
{[%emt 00:00:34]} Bxd5 {[%clk 00:09:47]} {[%emt 00:00:07]} 20. c3 {[%clk
00:12:04]} {[%emt 00:00:01]} a5 {[%clk 00:09:15]} {[%emt 00:00:37]} 21. Nb5
{[%clk 00:10:50]} {[%emt 00:01:19]} Rfd8 {[%clk 00:08:23]} {[%emt 00:00:57]} 22.
Nd6 {[%clk 00:09:45]} {[%emt 00:01:10]} f6 {[%clk 00:08:07]} {[%emt 00:00:22]}
23. Nb5 {[%clk 00:08:11]} {[%emt 00:01:38]} Bf3 {[%clk 00:07:55]} {[%emt
00:00:17]} 24. Nd4 {[%clk 00:06:35]} {[%emt 00:01:41]} Bxd1 {[%clk 00:07:52]}
{[%emt 00:00:08]} 25. Rxd1 {[%clk 00:06:36]} {[%emt 00:00:04]} fxe5 {[%clk
00:07:50]} {[%emt 00:00:07]} 0-1

[Event "Goteborg Open 2024"]
[Site "Goteborgs Schackcentrum, Vegatan 20, Gothenburg, Sweden"]
[Date "2024.08.02"]
[Round "3.18"]
[White "Saleh, Saqr"]
[Black "Bergdahl, Daniel"]
[Result "0-1"]
[TimeControl "15 minutes + 5 seconds per move from move one (Round 1 - 4) / 90 minutes + 30 seconds per move from move one (Round 5 - 8)"]
[WhiteFideId "1785877"]
[BlackFideId "1780921"]
[WhiteElo "1835"]
[BlackElo "1689"]

1. c4 {[%clk 00:15:05]} {[%emt 00:00:04]} Nf6 {[%clk 00:15:07]} {[%emt
00:00:02]} 2. Nc3 {[%clk 00:15:07]} {[%emt 00:00:03]} g6 {[%clk 00:15:11]} 3.
Nf3 {[%clk 00:15:11]} {[%emt 00:00:03]} Bg7 {[%clk 00:15:14]} {[%emt 00:00:02]}
4. e4 {[%clk 00:15:13]} {[%emt 00:00:02]} d6 {[%clk 00:15:17]} {[%emt
00:00:02]} 5. d4 {[%clk 00:15:17]} {[%emt 00:00:02]} O-O {[%clk 00:15:18]}
{[%emt 00:00:03]} 6. Be2 {[%clk 00:15:20]} {[%emt 00:00:02]} e5 {[%clk
00:15:19]} {[%emt 00:00:05]} 7. dxe5 {[%clk 00:15:23]} {[%emt 00:00:02]} dxe5
{[%clk 00:15:22]} 8. Qxd8 {[%clk 00:15:26]} {[%emt 00:00:02]} Rxd8 {[%clk
00:15:24]} {[%emt 00:00:04]} 9. Bg5 {[%clk 00:15:29]} {[%emt 00:00:01]} c6
{[%clk 00:14:38]} {[%emt 00:00:51]} 10. Nxe5 {[%clk 00:15:01]} {[%emt
00:00:34]} Re8 {[%clk 00:14:24]} {[%emt 00:00:18]} 11. O-O-O {[%clk 00:13:24]}
{[%emt 00:01:43]} Nxe4 {[%clk 00:13:50]} {[%emt 00:00:38]} 12. Nxe4 {[%clk
00:12:03]} {[%emt 00:01:26]} Bxe5 {[%clk 00:13:48]} {[%emt 00:00:07]} 13. Nf6+
{[%clk 00:08:57]} {[%emt 00:03:11]} Bxf6 {[%clk 00:13:31]} {[%emt 00:00:22]} 14.
Bxf6 {[%clk 00:09:00]} {[%emt 00:00:02]} Nd7 {[%clk 00:13:33]} {[%emt
00:00:03]} 15. Bd4 {[%clk 00:03:41]} {[%emt 00:05:24]} Rxe2 {[%clk 00:13:23]}
{[%emt 00:00:16]} 16. Rhe1 {[%clk 00:03:46]} Rxe1 {[%clk 00:12:39]} {[%emt
00:00:49]} 17. Rxe1 {[%clk 00:03:49]} {[%emt 00:00:02]} Nf8 {[%clk 00:12:34]}
{[%emt 00:00:09]} 18. Re8 {[%clk 00:03:48]} {[%emt 00:00:07]} b6 {[%clk
00:12:30]} {[%emt 00:00:08]} 19. Be5 {[%clk 00:01:47]} {[%emt 00:02:07]} Bb7
{[%clk 00:12:26]} {[%emt 00:00:09]} 20. Re7 {[%clk 00:01:50]} {[%emt 00:00:02]}
Ba6 {[%clk 00:12:15]} {[%emt 00:00:15]} 21. b3 {[%clk 00:01:27]} {[%emt
00:00:29]} Ne6 {[%clk 00:12:12]} {[%emt 00:00:07]} 22. Rd7 {[%clk 00:01:11]}
{[%emt 00:00:22]} Nc5 {[%clk 00:11:32]} {[%emt 00:00:44]} 23. Rd6 {[%clk
00:00:42]} {[%emt 00:00:35]} Rc8 {[%clk 00:11:24]} {[%emt 00:00:11]} 24. Kc2
{[%clk 00:00:45]} {[%emt 00:00:03]} b5 {[%clk 00:11:19]} {[%emt 00:00:10]} 25.
b4 {[%clk 00:00:32]} {[%emt 00:00:20]} Ne6 {[%clk 00:11:02]} {[%emt 00:00:20]}
26. c5 {[%clk 00:00:30]} {[%emt 00:00:08]} Nd8 {[%clk 00:08:28]} {[%emt
00:02:39]} 27. Rd7 {[%clk 00:00:18]} {[%emt 00:00:17]} Nb7 {[%clk 00:08:00]}
{[%emt 00:00:32]} 28. Bf6 {[%clk 00:00:18]} {[%emt 00:00:05]} Kf8 {[%clk
00:07:14]} {[%emt 00:00:51]} 29. f4 {[%clk 00:00:06]} {[%emt 00:00:17]} h5
{[%clk 00:06:43]} {[%emt 00:00:36]} 30. h4 {[%clk 00:00:06]} {[%emt 00:00:06]}
Re8 {[%clk 00:05:59]} {[%emt 00:00:48]} 31. Kd2 {[%clk 00:00:06]} {[%emt
00:00:02]} Re6 {[%clk 00:05:52]} {[%emt 00:00:15]} 0-1

[Event "Goteborg Open 2024"]
[Site "Goteborgs Schackcentrum, Vegatan 20, Gothenburg, Sweden"]
[Date "2024.08.02"]
[Round "3.19"]
[White "Hitcher, Oscar"]
[Black "Mohammed, Safian Haj"]
[Result "0-1"]
[TimeControl "15 minutes + 5 seconds per move from move one (Round 1 - 4) / 90 minutes + 30 seconds per move from move one (Round 5 - 8)"]
[WhiteFideId "1746901"]
[BlackFideId "1729276"]
[WhiteElo "1679"]
[BlackElo "1890"]

1. Nf3 {[%clk 00:15:04]} {[%emt 00:00:05]} d5 {[%clk 00:15:05]} {[%emt
00:00:06]} 2. a3 {[%clk 00:15:00]} {[%emt 00:00:09]} c5 {[%clk 00:15:07]}
{[%emt 00:00:02]} 3. e3 {[%clk 00:14:59]} {[%emt 00:00:07]} Nc6 {[%clk
00:15:10]} {[%emt 00:00:03]} 4. Bb5 {[%clk 00:14:53]} {[%emt 00:00:10]} Bg4
{[%clk 00:14:59]} {[%emt 00:00:15]} 5. b4 {[%clk 00:14:29]} {[%emt 00:00:29]}
e6 {[%clk 00:14:55]} {[%emt 00:00:09]} 6. d4 {[%clk 00:13:55]} {[%emt
00:00:39]} cxb4 {[%clk 00:14:51]} {[%emt 00:00:10]} 7. axb4 {[%clk 00:13:35]}
{[%emt 00:00:25]} Bxb4+ {[%clk 00:14:51]} {[%emt 00:00:05]} 8. Bd2 {[%clk
00:13:17]} {[%emt 00:00:22]} Qe7 {[%clk 00:14:30]} {[%emt 00:00:27]} 9. c3
{[%clk 00:12:54]} {[%emt 00:00:28]} Bd6 {[%clk 00:14:20]} {[%emt 00:00:15]} 10.
h3 {[%clk 00:11:57]} {[%emt 00:01:02]} Bh5 {[%clk 00:14:23]} {[%emt 00:00:03]}
11. Bxc6+ {[%clk 00:11:46]} {[%emt 00:00:14]} bxc6 {[%clk 00:14:25]} {[%emt
00:00:03]} 12. Bc1 {[%clk 00:11:09]} {[%emt 00:00:43]} Nf6 {[%clk 00:14:24]}
{[%emt 00:00:06]} 13. Qa4 {[%clk 00:10:32]} {[%emt 00:00:42]} Qc7 {[%clk
00:14:01]} {[%emt 00:00:27]} 14. Ne5 {[%clk 00:09:52]} {[%emt 00:00:46]} Bxe5
{[%clk 00:13:42]} {[%emt 00:00:24]} 15. dxe5 {[%clk 00:09:54]} {[%emt
00:00:02]} Nd7 {[%clk 00:13:43]} {[%emt 00:00:05]} 16. f4 {[%clk 00:08:45]}
{[%emt 00:01:14]} Nc5 {[%clk 00:13:07]} {[%emt 00:00:41]} 17. Qa3 {[%clk
00:07:04]} {[%emt 00:01:45]} Nd3+ {[%clk 00:11:56]} {[%emt 00:01:17]} 18. Kd2
{[%clk 00:06:22]} {[%emt 00:00:45]} Nf2 {[%clk 00:11:56]} {[%emt 00:00:07]} 19.
Rf1 {[%clk 00:05:53]} {[%emt 00:00:34]} Ne4+ {[%clk 00:11:57]} {[%emt
00:00:03]} 20. Kc2 {[%clk 00:05:23]} {[%emt 00:00:35]} Bg6 {[%clk 00:11:53]}
{[%emt 00:00:09]} 21. Kd1 {[%clk 00:04:58]} {[%emt 00:00:29]} Qb6 {[%clk
00:10:17]} {[%emt 00:01:42]} 22. Qb2 {[%clk 00:03:51]} {[%emt 00:01:12]} Qc7
{[%clk 00:09:12]} {[%emt 00:01:10]} 23. Nd2 {[%clk 00:03:26]} {[%emt 00:00:31]}
Nc5 {[%clk 00:06:37]} {[%emt 00:02:40]} 24. Ke2 {[%clk 00:02:43]} {[%emt
00:00:48]} Bd3+ {[%clk 00:06:33]} {[%emt 00:00:08]} 25. Kf2 {[%clk 00:02:24]}
{[%emt 00:00:21]} Bxf1 {[%clk 00:06:33]} {[%emt 00:00:08]} 26. Kxf1 {[%clk
00:02:24]} {[%emt 00:00:05]} Nd3 {[%clk 00:06:16]} {[%emt 00:00:21]} 27. Qa3
{[%clk 00:02:16]} {[%emt 00:00:13]} c5 {[%clk 00:06:10]} {[%emt 00:00:12]} 28.
Kg1 {[%clk 00:01:36]} {[%emt 00:00:44]} O-O {[%clk 00:05:51]} {[%emt 00:00:25]}
29. Nf3 {[%clk 00:01:23]} {[%emt 00:00:18]} Rfb8 {[%clk 00:05:20]} {[%emt
00:00:36]} 30. Qa6 {[%clk 00:00:56]} {[%emt 00:00:32]} Nxc1 {[%clk 00:04:59]}
{[%emt 00:00:26]} 31. Rxc1 {[%clk 00:00:57]} {[%emt 00:00:03]} Rb2 {[%clk
00:04:54]} {[%emt 00:00:10]} 32. Ne1 {[%clk 00:00:42]} {[%emt 00:00:22]} d4
{[%clk 00:04:16]} {[%emt 00:00:42]} 33. exd4 {[%clk 00:00:39]} {[%emt
00:00:08]} cxd4 {[%clk 00:04:16]} {[%emt 00:00:05]} 34. c4 {[%clk 00:00:38]}
{[%emt 00:00:05]} Rab8 {[%clk 00:03:47]} {[%emt 00:00:34]} 35. Nd3 {[%clk
00:00:41]} {[%emt 00:00:03]} Rb1 {[%clk 00:03:49]} {[%emt 00:00:03]} 36. Rxb1
{[%clk 00:00:40]} {[%emt 00:00:08]} Rxb1+ {[%clk 00:03:51]} {[%emt 00:00:01]}
37. Kh2 {[%clk 00:00:41]} {[%emt 00:00:03]} h6 {[%clk 00:03:06]} {[%emt
00:00:52]} 38. c5 {[%clk 00:00:44]} {[%emt 00:00:02]} Qb7 {[%clk 00:02:25]}
{[%emt 00:00:45]} 39. Qc4 {[%clk 00:00:31]} {[%emt 00:00:17]} Qd5 {[%clk
00:01:05]} {[%emt 00:01:26]} 40. Qc2 {[%clk 00:00:26]} {[%emt 00:00:10]} Qb3
{[%clk 00:00:51]} {[%emt 00:00:19]} 41. Qe2 {[%clk 00:00:14]} {[%emt 00:00:16]}
Rd1 {[%clk 00:00:42]} {[%emt 00:00:15]} 42. c6 {[%clk 00:00:13]} {[%emt
00:00:07]} Qxd3 {[%clk 00:00:37]} {[%emt 00:00:10]} 43. Qb2 {[%clk 00:00:08]}
{[%emt 00:00:09]} Qc4 {[%clk 00:00:28]} {[%emt 00:00:14]} 44. Qb8+ {[%clk
00:00:09]} {[%emt 00:00:04]} Kh7 {[%clk 00:00:32]} {[%emt 00:00:01]} 45. c7
{[%clk 00:00:10]} {[%emt 00:00:03]} Rc1 {[%clk 00:00:34]} {[%emt 00:00:03]} 46.
Qxa7 {[%clk 00:00:09]} {[%emt 00:00:06]} Qxc7 {[%clk 00:00:38]} {[%emt
00:00:02]} 47. Qxd4 {[%clk 00:00:11]} {[%emt 00:00:03]} g6 {[%clk 00:00:38]}
{[%emt 00:00:04]} 48. h4 {[%clk 00:00:14]} {[%emt 00:00:02]} Qc5 {[%clk
00:00:38]} {[%emt 00:00:06]} 49. Qd7 {[%clk 00:00:18]} {[%emt 00:00:02]} Qc7
{[%clk 00:00:42]} {[%emt 00:00:01]} 50. Qd2 {[%clk 00:00:21]} Rc4 {[%clk
00:00:44]} {[%emt 00:00:03]} 51. Qe3 {[%clk 00:00:23]} {[%emt 00:00:03]} Qc5
{[%clk 00:00:46]} {[%emt 00:00:03]} 52. Qd3 {[%clk 00:00:25]} {[%emt 00:00:02]}
Qd4 {[%clk 00:00:50]} {[%emt 00:00:02]} 53. Qa3 {[%clk 00:00:23]} {[%emt
00:00:07]} Qxf4+ {[%clk 00:00:52]} {[%emt 00:00:03]} 54. g3 {[%clk 00:00:26]}
{[%emt 00:00:02]} Rc2+ {[%clk 00:00:53]} {[%emt 00:00:03]} 55. Kh3 {[%clk
00:00:28]} {[%emt 00:00:04]} Qf5+ {[%clk 00:00:53]} {[%emt 00:00:06]} 56. g4
{[%clk 00:00:29]} {[%emt 00:00:03]} Qf1+ {[%clk 00:00:56]} {[%emt 00:00:02]} 57.
Kg3 {[%clk 00:00:17]} {[%emt 00:00:15]} Qf2+ {[%clk 00:00:51]} {[%emt
00:00:11]} 58. Kh3 {[%clk 00:00:17]} {[%emt 00:00:04]} Qg2# {[%clk 00:00:53]}
{[%emt 00:00:02]} 59. Qc1 {[%emt 00:00:19]} 0-1

[Event "Goteborg Open 2024"]
[Site "Goteborgs Schackcentrum, Vegatan 20, Gothenburg, Sweden"]
[Date "2024.08.02"]
[Round "3.20"]
[White "Ulmer, Maya Vissing"]
[Black "Johansson, Eva"]
[Result "0-1"]
[TimeControl "15 minutes + 5 seconds per move from move one (Round 1 - 4) / 90 minutes + 30 seconds per move from move one (Round 5 - 8)"]
[WhiteFideId "1479997"]
[BlackFideId "1724584"]
[WhiteElo "1676"]
[BlackElo "1878"]

1. d4 {[%clk 00:15:08]} {[%emt 00:00:01]} d6 {[%clk 00:15:08]} {[%emt
00:00:02]} 2. c4 {[%clk 00:15:11]} {[%emt 00:00:03]} e5 {[%clk 00:15:11]}
{[%emt 00:00:01]} 3. dxe5 {[%clk 00:14:48]} {[%emt 00:00:29]} dxe5 {[%clk
00:15:14]} {[%emt 00:00:01]} 4. Qxd8+ {[%clk 00:14:45]} {[%emt 00:00:08]} Kxd8
{[%clk 00:15:18]} {[%emt 00:00:01]} 5. e4 {[%clk 00:14:48]} {[%emt 00:00:02]}
Be6 {[%clk 00:15:07]} {[%emt 00:00:15]} 6. Nf3 {[%clk 00:14:45]} {[%emt
00:00:09]} Nd7 {[%clk 00:15:04]} {[%emt 00:00:08]} 7. Be3 {[%clk 00:14:41]}
{[%emt 00:00:09]} c6 {[%clk 00:13:48]} {[%emt 00:00:28]} 8. Be2 {[%clk
00:14:44]} {[%emt 00:00:55]} f6 {[%clk 00:13:46]} {[%emt 00:00:06]} 9. O-O
{[%clk 00:14:34]} {[%emt 00:00:16]} g5 {[%clk 00:13:36]} {[%emt 00:00:15]} 10.
Nc3 {[%clk 00:13:56]} {[%emt 00:00:43]} Nh6 {[%clk 00:12:08]} {[%emt 00:01:31]}
11. Rfd1 {[%clk 00:12:51]} {[%emt 00:01:12]} Kc7 {[%clk 00:12:07]} {[%emt
00:00:06]} 12. a3 {[%clk 00:11:25]} {[%emt 00:01:31]} Nf7 {[%clk 00:11:17]}
{[%emt 00:00:54]} 13. b4 {[%clk 00:09:51]} {[%emt 00:01:40]} Nd6 {[%clk
00:09:43]} {[%emt 00:01:35]} 14. Nd2 {[%clk 00:07:22]} {[%emt 00:02:38]} Be7
{[%clk 00:08:21]} {[%emt 00:01:26]} 15. c5 {[%clk 00:07:10]} {[%emt 00:00:18]}
Nf7 {[%clk 00:08:24]} {[%emt 00:00:03]} 16. Bc4 {[%clk 00:06:09]} {[%emt
00:01:05]} Nf8 {[%clk 00:07:11]} {[%emt 00:01:16]} 17. Bxe6 {[%clk 00:04:58]}
{[%emt 00:01:18]} Nxe6 {[%clk 00:07:15]} {[%emt 00:00:02]} 18. Nc4 {[%clk
00:04:33]} {[%emt 00:00:29]} h5 {[%emt 00:01:13]} 19. Ne2 {[%emt 00:00:34]} g4
{[%clk 00:05:54]} {[%emt 00:00:52]} 20. Ng3 {[%clk 00:02:56]} {[%emt 00:00:38]}
Nfg5 {[%clk 00:04:40]} {[%emt 00:01:17]} 21. Nf5 {[%clk 00:02:24]} {[%emt
00:00:40]} Bf8 {[%clk 00:03:53]} {[%emt 00:00:50]} 22. f3 {[%clk 00:01:49]}
{[%emt 00:00:43]} gxf3 {[%clk 00:03:49]} {[%emt 00:00:08]} 23. h4 {[%clk
00:00:09]} {[%emt 00:01:45]} Nxe4 {[%clk 00:03:02]} {[%emt 00:00:52]} 24. gxf3
{[%clk 00:00:13]} {[%emt 00:00:02]} Nc3 {[%clk 00:02:58]} {[%emt 00:00:08]} 25.
Rd3 {[%clk 00:00:06]} {[%emt 00:00:13]} Nd5 {[%clk 00:02:59]} {[%emt 00:00:03]}
26. Kf2 {[%clk 00:00:09]} {[%emt 00:00:02]} Rg8 {[%clk 00:02:43]} {[%emt
00:00:20]} 27. Rg1 {[%clk 00:00:06]} {[%emt 00:00:09]} Rxg1 {[%clk 00:02:33]}
{[%emt 00:00:15]} 28. Kxg1 {[%clk 00:00:10]} {[%emt 00:00:03]} Nef4 {[%clk
00:02:18]} {[%emt 00:00:18]} 29. Bxf4 {[%clk 00:00:13]} {[%emt 00:00:02]} Nxf4
{[%clk 00:02:21]} {[%emt 00:00:02]} 30. Rd2 {[%clk 00:00:15]} {[%emt 00:00:04]}
Re8 {[%clk 00:01:43]} {[%emt 00:00:35]} 31. Ng3 {[%clk 00:00:17]} {[%emt
00:00:09]} Be7 {[%clk 00:01:29]} {[%emt 00:00:20]} 32. Nxh5 Nxh5 {[%clk
00:01:32]} 0-1